Cogmind - Beta 13 @@@ ROGUE MODE // 2024.04.13 @ 20:34:24 Player: JTMusky Result: Destroyed by KQ-IJ6(R) with Subdweller Laser Performance ------------- Evolutions (0) 0 Regions Visited (2) 400 Robots Destroyed (25) 125 Value Destroyed (595) 595 Prototype IDs (3) 60 Alien Tech Used (0) 0 Bonus (0) 0 TOTAL SCORE: 1180 Bonus ------- None Cogmind --------- Core Integrity 0/250 Matter 82/300 Energy 98/100 System Corruption 2% Temperature Cool (7) Movement Treading (160) Location -10/Subcaves Parts ------- > --- POWER (1) -------- (None) > --- PROPULSION (2) --- Light Treads > --- UTILITY (2) ------ Signal Interpreter Targeting Computer > --- WEAPON (2) ------- Datajack > --- INVENTORY (5) ---- Improved Hover Unit Improved Hover Unit Seismic Detector Peak State ------------ > --- POWER ------------ Ion Engine > --- PROPULSION ------- Light Treads Light Treads > --- UTILITY ---------- Medium Storage Unit Seismic Detector > --- WEAPON ----------- Beam Cannon Assault Rifle > --- INVENTORY -------- Ion Engine Ion Engine Aluminum Leg Aluminum Leg Small Storage Unit High-capacity Battery Weight Redist. System Small Laser Small Laser Datajack [Rating: 8] Favorites ----------- Power Ion Engine Engine Ion Engine Propulsion Light Treads Treads Light Treads Wheel Subdweller Monowheel Utility Targeting Computer Device Seismic Detector Storage Medium Storage Unit Processor Targeting Computer Weapon Assault Rifle Energy Gun Small Laser Energy Cannon Beam Cannon Ballistic Gun Assault Rifle Launcher Grenade Launcher Special Melee Weapon Datajack Build | -11 -10 -10 ------- Run | Yrd Mat Sub Slots Evolved . | . . . Power . | . . . Propulsion . | . . . Utility . | . . . Weapon . | . . . Parts Attached 31 | 7 19 5 Power 2 | 1 1 . Engine 2 | 1 1 . Core . | . . . Reactor . | . . . Propulsion 4 | 2 1 1 Treads 3 | 2 1 . Leg . | . . . Wheel 1 | . . 1 Hover . | . . . Flight . | . . . Utility 5 | 2 3 . Device 1 | 1 . . Storage 2 | 1 1 . Processor 2 | . 2 . Hackware . | . . . Protection . | . . . Artifact . | . . . Weapon 20 | 2 14 4 Energy Gun 7 | 1 6 . Energy Cannon 8 | . 7 1 Ballistic Gun 1 | 1 . . Ballistic Cannon . | . . . Launcher 3 | . 1 2 Special Weapon . | . . . Impact Weapon . | . . . Slashing Weapon . | . . . Piercing Weapon . | . . . Special Melee Weapon 1 | . . 1 Unidentified Prototypes . | . . . Parts Lost 8 | . 2 6 Power 2 | . 1 1 Propulsion 3 | . 1 2 Utility . | . . . Weapon 3 | . . 3 Highest Loss Streak 5 | . 2 5 To Critical Strikes 1 | . 1 . Average Slot Usage (%) 99 | . 99 96 Engine 13 | . 14 12 Treads 27 | . 27 23 Device 1 | . 2 . Storage 9 | . 11 . Processor 16 | . 14 28 Energy Cannon 11 | . 13 . Ballistic Gun 13 | . 14 12 Launcher 1 | . . 13 Naked Turns . | . . . Heaviest Build 21 | 14 21 10 Greatest Support 40 | 40 40 40 Greatest Overweight (x) . | . . . Average Overweight (x) . | . . . Largest Inventory Capacity 10 | 8 10 5 Average Capacity 8 | 7 8 5 Most Carried 10 | 7 10 5 Average Carried 7 | 3 8 4 Final Capacity 8 | 8 5 5 Final Carried 6 | 6 5 3 Class Distribution -------------------- 100% | Mutant Dominant Class ---------------- Mutant | -10/Materials Mutant | -10/Subcaves Resources | -11 -10 -10 ----------- Run | Yrd Mat Sub Matter Collected 649 | 273 349 27 Remotely . | . . . Salvage Created 538 | 29 462 47 Parts 39 | 3 31 5 Haulers Intercepted . | . . . Recyclers Shooed . | . . . Parts Field Recycled . | . . . Retrieved Matter . | . . . Parts Self-Destructed 1 | . . 1 Prevented . | . . . Kills | -11 -10 -10 ------- Run | Yrd Mat Sub Combat Hostiles Destroyed 17 | . 12 5 Guns 7 | . 6 1 Cannons 6 | . 6 . AOE 4 | . . 4 Classes Destroyed 8 | 1 6 1 Worker 2 | . 2 . Builder 1 | . 1 . Tunneler 1 | 1 . . Operator 1 | . 1 . Watcher 3 | . 3 . Swarmer 6 | . 6 . Grunt 6 | . 6 . Subdweller 5 | . . 5 Best Kill Streak 3 | 1 3 2 Combat Bots Only 3 | . 3 2 Max Kills in Single Turn 2 | 1 2 1 Gunslinging . | . . . Exploded 1 | . . 1 Melee . | . . . Uniques/NPCs Destroyed . | . . . Combat | -11 -10 -10 -------- Run | Yrd Mat Sub Hostile Shots Fired 121 | . 90 31 Missed 42 | . 32 10 Damage Taken 1049 | . 507 542 Core 257 | . 126 131 Absorbed by Shields . | . . . Core Remaining (%) 100 | 100 . . Volleys Fired 73 | 1 50 22 Largest 2 | 2 2 2 Hottest 80 | 60 80 80 Shots Fired 139 | 2 99 38 Gun 67 | 2 49 16 Cannon 54 | . 49 5 Launcher 18 | . 1 17 Special . | . . . Kinetic 66 | 1 49 16 Thermal 55 | 1 49 5 Explosive 18 | . 1 17 Electromagnetic . | . . . Robot Hit Streak 13 | 2 7 13 Robot Miss Streak 6 | . 6 2 Penetration Max . | . . . Secondary Targets . | . . . Shots Hit Robots 80 | 2 50 28 Core Hits 33 | 1 22 10 Critical Kills . | . . . Critical Parts Destroyed 1 | . . 1 Critical Strikes 1 | . . 1 Destroy 1 | . . 1 Melee Attacks 1 | . . 1 Impact . | . . . Slashing . | . . . Piercing . | . . . Sneak Attacks . | . . . Combat Hostiles . | . . . Follow-up Attacks . | . . . Damage Inflicted 1959 | 24 813 1122 Guns 519 | 24 337 158 Cannons 493 | . 404 89 Explosions 934 | . 59 875 Melee . | . . . Ramming 13 | . 13 . Kinetic 507 | 12 337 158 Thermal 505 | 12 404 89 Explosive 934 | . 59 875 Electromagnetic . | . . . Impact . | . . . Slashing . | . . . Piercing . | . . . Highest Corruption 2 | . 2 2 Average Corruption 1 | . 1 2 Corruption Purged . | . . . Corruption Blocked . | . . . Effects 16 | . 10 6 Message Errors 7 | . 3 4 Matter Fused 3 | . 2 1 Heat Flow Errors 4 | . 4 . Data Loss (minor) 1 | . . 1 Alerts 1 | . 1 . Overload Shots . | . . . Overflow Damage 25 | . 13 12 Projectiles 13 | . 13 . Explosions 12 | . . 12 Melee . | . . . Knockbacks . | . . . Impact . | . . . Kinetic . | . . . Secondary . | . . . Self-Inflicted Damage 56 | . . 56 Shots 3 | . . 3 Rammed 3 | . 3 . Targets Rammed 3 | . 3 . Kicked . | . . . Crushed . | . . . Highest Temperature 258 | . 258 . Average Temperature 68 | . 68 . Received Heat Transfer 252 | . 102 150 Effects 1 | . 1 . Energy Bleed 1 | . 1 . Siege Activations . | . . . Robots Corrupted . | . . . Combat Hostiles . | . . . Parts Fried . | . . . Impact Corruptions . | . . . Robots Melted . | . . . Combat Hostiles . | . . . Parts Melted 1 | . 1 . Heat Transferred 1061 | 25 851 185 Parts Sabotaged . | . . . Parts Stolen . | . . . Parts Stripped . | . . . Power Chain Reactions . | . . . Alert | -11 -10 -10 ------- Run | Yrd Mat Sub Peak Influence 214 | 5 214 . Initial 3 | . 3 . Average 52 | 1 54 . Maximum Alert Level 1 | . 1 . Low Security (%) 99 | 100 99 . Level 1 . | . . . Level 2 . | . . . Level 3 . | . . . Level 4 . | . . . Level 5 . | . . . High Security . | . . . Max Security . | . . . Squads Dispatched 2 | . 2 . Investigation 1 | . 1 . Extermination . | . . . Reinforcement 1 | . 1 . Assault . | . . . Garrison . | . . . Intercept . | . . . Searches Triggered . | . . . Construction Impeded . | . . . Haulers Reinforced . | . . . Active Scanning Responses . | . . . Cargo Convoy Interrupts . | . . . Stealth | -11 -10 -10 --------- Run | Yrd Mat Sub Distress Signals 1 | . 1 . Communications Jammed . | . . . Distress Signals . | . . . Times Spotted 31 | . 25 6 Peak Tracking Total 4 | . 4 2 Tactical Retreats . | . . . Traps | -11 -10 -10 ------- Run | Yrd Mat Sub Traps Triggered 3 | . 3 . Indirectly . | . . . Trap Hack Attempts . | . . . Triggered . | . . . Disarmed 6 | . 6 . Reprogrammed . | . . . Reused . | . . . Traps Extracted . | . . . Installed . | . . . Triggered . | . . . Machines | -11 -10 -10 ---------- Run | Yrd Mat Sub Machines Disabled 4 | . 4 . Max in Single Turn 1 | . 1 . Machines Repaired . | . . . Machines Dismantled . | . . . Machines Sabotaged . | . . . Overloaded Fab Kills . | . . . Hacking | -11 -10 -10 --------- Run | Yrd Mat Sub Machines Accessed 9 | . 9 . Terminals 7 | . 7 . Fabricators . | . . . Repair Stations . | . . . Recycling Units 2 | . 2 . Scanalyzers . | . . . Garrison Access . | . . . Total Hacks 24 | . 24 . Successful 8 | . 8 . Failed 16 | . 16 . Catastrophic 3 | . 3 . Database Lockouts . | . . . Manual 2 | . 2 . Terminals 19 | . 19 . Fabricators . | . . . Repair Stations . | . . . Recycling Units 5 | . 5 . Scanalyzers . | . . . Garrison Access . | . . . Terminal Hacks 5 | . 5 . Robot Analysis 1 | . 1 . Prototype ID Bank 1 | . 1 . Emergency Access Points 1 | . 1 . Locate Traps 1 | . 1 . Disarm Traps 1 | . 1 . Fabricator Hacks . | . . . Repair Station Hacks . | . . . Recycling Unit Hacks 3 | . 3 . Retrieve Matter 1 | . 1 . Retrieve Components 2 | . 2 . Scanalyzer . | . . . Garrison Access Hacks . | . . . Unauthorized Hacks . | . . . Terminals . | . . . Fabricators . | . . . Repair Stations . | . . . Recycling Units . | . . . Scanalyzers . | . . . Garrison Access . | . . . Data Cores Recovered . | . . . Used . | . . . Hacking Detections 8 | . 8 . Full Trace Events 1 | . 1 . Feedback Events . | . . . Feedback Blocked . | . . . Robot Schematics Acquired . | . . . Robots Built . | . . . Authchips . | . . . Time . | . . . Total Robot Build Rating . | . . . Part Schematics Acquired . | . . . Parts Built . | . . . Authchips . | . . . Time . | . . . Total Part Build Rating . | . . . Parts Repaired . | . . . Time . | . . . Parts Recycled . | . . . Recycled Matter . | . . . Retrieved Matter . | . . . Retrieved Components 12 | . 12 . Parts Scanalyzed . | . . . Part Schematics Acquired . | . . . Parts Damaged . | . . . Bothacking | -11 -10 -10 ------------ Run | Yrd Mat Sub Used RIF Installer . | . . . Robots Hacked 1 | . . 1 Non-combat . | . . . Combat 1 | . . 1 Robot Hacks Applied 1 | . . 1 parse_system 1 | . . 1 Relay Couplers Released . | . . . Fabnet Peak Effective % . | . . . Robots Rewired . | . . . Allies Hacked . | . . . Hacks Repelled . | . . . Allies | -11 -10 -10 -------- Run | Yrd Mat Sub Total Allies . | . . . Largest Group . | . . . Highest-Rated Group . | . . . Highest-Rated Ally . | . . . Total Orders . | . . . Ally Attacks . | . . . Total Damage . | . . . Kills . | . . . Allies Corrupted . | . . . Allies Melted . | . . . Intel | -11 -10 -10 ------- Run | Yrd Mat Sub Robot Analysis Total 1 | . 1 . Derelict Logs Recovered 1 | . . 1 Drone Launches . | . . . Drone Recoveries . | . . . Exploration | -11 -10 -10 ------------- Run | Yrd Mat Sub Turns Passed 2705 | 123 2239 343 Spaces Moved 1499 | 66 1249 184 Core 2 | 2 . . Treads 1455 | 64 1249 142 Legs . | . . . Wheels 42 | . . 42 Hover . | . . . Flight . | . . . Fastest Speed 50 | 50 160 110 Average Speed 158 | 156 160 148 Slowest Speed 160 | 160 160 160 Overloaded Moves . | . . . Propulsion Burnouts . | . . . Robots Hopped . | . . . Cave-ins Triggered . | . . . Exploration Rate (%) 41 | 4 100 19 Regions Visited 2 Branch Regions 1 Pre-discovered Areas 1 | . . 1 Known Exits Taken 1 | . 1 . Unknown Exits Taken 1 | 1 . . Scrap Searched . | . . . Spaces Dug . | . . . Terrain Destroyed 96 | . 11 85 Melee . | . . . Projectile . | . . . AOE 96 | . 11 85 Terrain Rammed . | . . . Walls Destroyed . | . . . Machines Disabled . | . . . Actions | -11 -10 -10 --------- Run | Yrd Mat Sub Total 1681 | 81 1385 215 Wait 42 | . 39 3 Move 1497 | 65 1248 184 Hop . | . . . Pick Up 24 | 8 16 . Fast Attach 6 | 5 . 1 Attach 6 | 2 2 2 Detach . | . . . Swap 19 | . 17 2 Drop 10 | . 10 . Fire 73 | 1 50 22 Melee 1 | . . 1 Ram . | . . . Kick . | . . . Crush 3 | . 3 . Escape Stasis . | . . . Rewire . | . . . Trap . | . . . Miscellaneous . | . . . Route ------- -11/Scrapyard -10/Materials (discovered 6 exits: *Mat x3 / *Min x2 / *Sub) -10/Subcaves History --------- Turn | Location | Event 13 | -11/Scrapyard | Discovered new exit (range 16) 124 | -11/Scrapyard | Entered Materials 312 | -10/Materials | Build established: Mutant 771 | -10/Materials | Discovered new exit (range 12) 877 | -10/Materials | Discovered new exit (range 8) 914 | -10/Materials | Core integrity fell below 50% 1068 | -10/Materials | Discovered new exit (range 3) 1335 | -10/Materials | Discovered new exit (range 14) 1525 | -10/Materials | Discovered new exit (range 6) 1890 | -10/Materials | Identified exit to Materials 1990 | -10/Materials | Identified exit to Mines 2332 | -10/Materials | Discovered new exit (range 15) 2361 | -10/Materials | Identified exit to Subcaves 2363 | -10/Materials | Entered Subcaves 2397 | -10/Subcaves | A swath of the cavern ceiling suddenly collapsed 2431 | -10/Subcaves | Ambushed by Subdweller buried in earth 2526 | -10/Subcaves | Learned location of Mines (-8) 2580 | -10/Subcaves | Ambushed by Subdwellers from Twisted Machinery 2668 | -10/Subcaves | Disturbed a concealed Subdweller 2691 | -10/Subcaves | Ambushed by Subdweller buried in earth 2692 | -10/Subcaves | Core integrity fell below 20% 2706 | -10/Subcaves | Destroyed by KQ-IJ6(R) with Subdweller Laser Last Messages --------------- 02622_ Subatomizers dissect the Sub. Monowheel. 02623_ Acquired Sub. Monowheel. 02668_ DF-I03(R) angrily emerges from the Twisted Machinery. 02671_ Sub. Monowheel destroyed. 02672_ DF-I03(R) suffers critical hit (Destroy). 02672_ Destroyed Sub. Power Source. 02673_ Ion Engine destroyed. 02673_ Assault Rifle destroyed. 02683_ DF-I03(R) affixes Scrap Shield Fragment to Scrap Shield. 02691_ DF-I03(R) destroyed. 02691_ Beam Cannon destroyed. 02691_ Destroyed Beam Cannon. 02692_ KQ-IJ6(R): "ARGHSUB!" 02694_ Jacked KQ-IJ6(R)... >>parse_system Reading system data... 02698_ 5 7|VWM UQTSX2O8/>4:FV3TM 02702_ Grenade Launcher destroyed. Map ----- +----------------------------------------------------+ | #???????????????????????????????????????? | | # ???????????????????????????????????????? | | #??? ?????????????????????????????????????????? | | ?????????????????????????????????????????????????? | | ?????????????????????????????????????????????????? | | ?????????????????????????????????????????????????? | | ?????????????????????????????????????????????????? | | ?????????????????????????????????????????????????? | | ?????????????????????????????????????????????????? | | ?????????????????????????????????????????????????? | | ?????????????????????????????????????????????????? | | ?????????????????????????????????????????????????? | | ?????????????????????????????????????????????????? | | ?????????????????????????????????????????????????? | | ?????????????????????????????????????????????????? | | ?????????????????????????????????????????????????? | | ?????????######??????????????????????????????????? | | ????????#" "#??????????????????????????????????? | | ????????# $# &##?????????????????????????????????? | | ###???????# & ?????????????????????????????????? | | #?????###" %& ?####????##?????????????????????? | | #?????# ## ## ##### #####?????????????????? | | # #?????# " R # ??????????????????? | | ######### # # # #????????????????????? | | ## # # ##### #?????????????????????? | | ## ##????# @ #?????????????????????? | | ###??????# ??????????????????? | | # ## #### #????????## ##?????????????????? | | #######??# #???????## ##??????????????????? | | ????????? #????????## #???????????????????? | | ????????#######?????????## ##???????????????????? | | ??????????????????????????###????????????????????? | | ?????????????????????????????????????????????????? | | ?????????????????????????????????????????????????? | | ?????????????????????????????????????????????????? | | ?????????????????????????????????????????????????? | | ?????????????????????????????????????????????????? | | ?????????????????????????????????????????????????? | | ?????????????????????????????????????????????????? | | ?????????????????????????????????????????????????? | | ?????????????????????????????????????????????????? | | ?????????????????????????????????????????????????? | | ?????????????????????????????????????????????????? | | ?????????????????????????????????????????????????? | | ?????????????????????????????????????????????????? | | ?????????????????????????????????????????????????? | | | | | | | | | +----------------------------------------------------+ Best States ------------- Heat Dissipation 25 Energy Generation 10 Energy Capacity 250 Matter Stores 300 Matter Capacity 300 Sight Range 16 Terrain Scan Density 10 Evasion (%) 40 Targeting Accuracy 5 Recoil Reduction 2 Item Schematics ----------------- None Robot Schematics ------------------ None Fabricated ------------ Nothing Alien Tech Used ----------------- None Achievements -------------- None Challenges ------------ None Game ------ Seed BombardmentFireCleaver Manual? 0 Play Time 00:44:54 Cumulative 9.9 hours Start 2024.04.13 @ 19:48:01 End 2024.04.13 @ 20:34:24 Sessions 1 Manual Loads 0 Difficulty Rogue Special Mode None Game No. 11 Rogue 11 Adventurer 0 Explorer 0 Win Type - Total 0 Types 0/0/0/0/0/0/0/0/0 Lore% 5 Gallery% 8 Achievement% 6 Wizard Run 0 Options --------- Layout 2 ASCII 1 Keyboard 1 Movement Vi Keybinds 0 Fullscreen 2 Font 40/SmallcapsGlow Map View 50x44 Zoom Use 0% Tactical HUD 1 Map Filters NONE Filters NONE Steam 0 RUN: 880836c5-7208-4062-b445-fa9962b32b12